fUSD/lending_fUSD_20250213
["ID","MTS","AMOUNT","RATE_DAILY","PERIOD"]
[352945850,1739454642953,-825.53,0.00014982,2]
[352945852,1739454642962,-500.0,0.00014982,2]
[352945853,1739454642971,-500.0,0.00014982,2]
[352945854,1739454642981,-500.0,0.00014982,2]
[352945855,1739454642990,-501.46897019,0.00014982,2]
[352945856,1739454642999,-500.0,0.00014982,2]
[352945857,1739454643009,-500.0,0.00014982,2]
[352945858,1739454643018,-948.61,0.00014982,2]
[352945859,1739454643029,-1087.42,0.00014982,2]
[352945860,1739454643038,-501.40669287,0.00014982,2]
[352945861,1739454643047,-500.0,0.00014982,2]
[352945863,1739454643056,-500.0,0.00014982,2]
[352945864,1739454643066,-1305.7,0.00014982,2]
[352945865,1739454643075,-500.0,0.00014982,2]
[352945866,1739454643084,-500.0,0.00014982,2]
[352945867,1739454643094,-716.26,0.00014982,2]
[352945868,1739454643103,-681.83,0.00014982,2]
[352945869,1739454643113,-500.0,0.00014982,2]
[352945870,1739454643122,-999.96,0.00014982,2]
[352945871,1739454643132,-881.24,0.00014982,2]
[352945872,1739454643141,-500.0,0.00014982,2]
[352945873,1739454643150,-500.0,0.00014982,2]
[352945874,1739454643159,-500.0,0.00014982,2]
[352945875,1739454643168,-674.27,0.00014982,2]
[352945876,1739454643178,-500.0,0.00014982,2]
[352945877,1739454643192,-877.14,0.00014982,2]
[352945878,1739454643201,-502.51348251,0.00014982,2]
[352945879,1739454643211,-500.0,0.00014982,2]
[352945880,1739454643220,-500.0,0.00014982,2]
[352945881,1739454643230,-501.41489659,0.00014982,2]
[352945882,1739454643239,-500.0,0.00014982,2]
[352945883,1739454643250,-500.0,0.00014982,2]
[352945884,1739454643259,-500.0,0.00014982,2]
[352945885,1739454643269,-500.0,0.00014982,2]
[352945886,1739454643278,-500.0,0.00014982,2]
[352945888,1739454643288,-500.0,0.00014982,2]
[352945889,1739454643297,-500.0,0.00014982,2]
[352945890,1739454643306,-1979.72,0.00014982,2]
[352945891,1739454643316,-500.0,0.00014982,2]
[352945892,1739454643325,-573.63451967,0.00014982,2]
[352945893,1739454643334,-500.0,0.00014982,2]
[352945894,1739454643344,-500.0,0.00014982,2]
[352945895,1739454643353,-500.0,0.00014982,2]
[352945896,1739454643362,-542.61,0.00014982,2]
[352945897,1739454643372,-696.88,0.00014982,2]
[352945898,1739454643381,-2109.94,0.00014982,2]
[352945899,1739454643391,-500.0,0.00014982,2]
[352945900,1739454643400,-500.0,0.00014982,2]
[352945901,1739454643411,-500.0,0.00014982,2]
[352945902,1739454643420,-503.95674388,0.00014982,2]
[352945903,1739454643429,-506.98766438,0.00014982,2]
[352945905,1739454643439,-500.0,0.00014982,2]
[352945907,1739454643448,-590.37,0.00014982,2]
[352945909,1739454643458,-508.80505818,0.00014982,2]
[352945910,1739454643467,-856.64,0.00014982,2]
[352945911,1739454643477,-617.16,0.00014982,2]
[352945912,1739454643487,-730.57,0.00014982,2]
[352945913,1739454643497,-503.69947309,0.00014982,2]
[352945914,1739454643507,-490.38135613,0.00014982,2]
[352945915,1739454643518,-500.0,0.00014982,2]
[352945916,1739454643529,-500.0,0.00014982,2]
[352945917,1739454643539,-1773.13,0.00014982,2]
[352945918,1739454643549,-916.29,0.00014982,2]
[352945919,1739454643560,-500.0,0.00014982,2]
[352945920,1739454643569,-500.0,0.00014982,2]
[352945921,1739454643579,-510.87,0.00014982,2]
[352945922,1739454643588,-1305.5,0.00014982,2]
[352945923,1739454643599,-501.63340414,0.00014982,2]
[352945924,1739454643609,-500.0,0.00014982,2]
[352945925,1739454643620,-585.26,0.00014982,2]
[352945926,1739454643629,-803.23,0.00014982,2]
[352945927,1739454643641,-500.0,0.00014982,2]
[352945928,1739454643652,-618.12457006,0.00014982,2]
[352945929,1739454643662,-500.0,0.00014982,2]
[352945930,1739454643675,-500.0,0.00014982,2]
[352945931,1739454643684,-500.0,0.00014982,2]
[352945932,1739454643694,-510.18,0.00014982,2]
[352945933,1739454643703,-500.0,0.00014982,2]
[352945934,1739454643713,-1285.97,0.00014982,2]
[352945935,1739454643722,-500.0,0.00014982,2]
[352945936,1739454643732,-908.72,0.00014982,2]
[352945937,1739454643742,-680.43,0.00014982,2]
[352945938,1739454643752,-553.96518107,0.00014982,2]
[352945939,1739454643761,-500.0,0.00014982,2]
[352945940,1739454643771,-500.0,0.00014982,2]
[352945941,1739454643780,-1767.95,0.00014982,2]
[352945942,1739454643790,-1022.41,0.00014982,2]
[352945943,1739454643800,-502.93413517,0.00014982,2]
[352945944,1739454643809,-737.1,0.00014982,2]
[352945945,1739454643818,-731.97,0.00014982,2]
[352945946,1739454643828,-541.62,0.00014982,2]
[352945947,1739454643837,-500.0,0.00014982,2]
[352945948,1739454643847,-1317.05,0.00014982,2]
[352945949,1739454643856,-500.0,0.00014982,2]
[352945950,1739454643865,-419.59691155,0.00014982,2]
[352945951,1739454643877,-1456.56,0.00014982,2]
[352945952,1739454643887,-742.77,0.00014982,2]
[352945953,1739454643896,-1372.99,0.00014982,2]
[352945954,1739454643906,-500.0,0.00014982,2]
[352945955,1739454643915,-500.0,0.00014982,2]
[352945956,1739454643925,-500.0,0.00014982,2]
[352945957,1739454643934,-500.0,0.00014982,2]
[352945958,1739454643944,-500.0,0.00014982,2]
[352945959,1739454643953,-500.0,0.00014982,2]
[352945960,1739454643963,-1411.76,0.00014982,2]
[352945961,1739454643972,-555.27,0.00014982,2]
[352945962,1739454643982,-500.0,0.00014982,2]
[352945963,1739454643991,-500.0,0.00014982,2]
[352945964,1739454644002,-2118.79,0.00014982,2]
[352945965,1739454644012,-957.69,0.00014982,2]
[352945966,1739454644021,-935.43,0.00014982,2]
[352945967,1739454644031,-500.0,0.00014982,2]
[352945968,1739454644040,-556.39,0.00014982,2]
[352945969,1739454644050,-1609.06,0.00014982,2]
[352945970,1739454644061,-1321.06,0.00014982,2]
[352945971,1739454644071,-500.0,0.00014982,2]
[352945972,1739454644080,-638.96,0.00014982,2]
[352945973,1739454644090,-500.0,0.00014982,2]
[352945974,1739454644099,-500.0,0.00014982,2]
[352945975,1739454644108,-832.3,0.00014982,2]
[352945976,1739454644118,-500.0,0.00014982,2]
[352945977,1739454644127,-554.85,0.00014982,2]
[352945978,1739454644136,-548.41,0.00014982,2]
[352945979,1739454644146,-1039.68,0.00014982,2]
[352945980,1739454644156,-500.0,0.00014982,2]
[352945981,1739454644165,-500.0,0.00014982,2]
[352945982,1739454644175,-1181.5,0.00014982,2]
[352945983,1739454644185,-500.0,0.00014982,2]
[352945984,1739454644194,-753.88,0.00014982,2]
[352945985,1739454644203,-608.67,0.00014982,2]
[352945986,1739454644213,-1135.12,0.00014982,2]
[352945987,1739454644222,-824.32,0.00014982,2]
[352945988,1739454644231,-500.0,0.00014982,2]
[352945989,1739454644241,-1021.97,0.00014982,2]
[352945990,1739454644252,-1858.06,0.00014982,2]
[352945991,1739454644261,-1009.57,0.00014982,2]
[352945992,1739454644271,-500.0,0.00014982,2]
[352945993,1739454644281,-981.5,0.00014982,2]
[352945994,1739454644290,-500.0,0.00014982,2]
[352945995,1739454644299,-2523.07,0.00014982,2]
[352945996,1739454644308,-500.0,0.00014982,2]
[352945997,1739454644513,-1393.14,0.00014982,2]
[352945998,1739454644523,-2545.2,0.00014982,2]
[352945999,1739454644532,-567.42,0.00014982,2]
[352946000,1739454644541,-981.13,0.00014982,2]
[352946001,1739454644550,-500.0,0.00014982,2]
[352946002,1739454644559,-500.0,0.00014982,2]
[352946003,1739454644568,-545.27,0.00014982,2]
[352946004,1739454644577,-500.0,0.00014982,2]
[352946005,1739454644587,-500.0,0.00014982,2]
[352946006,1739454644595,-3003.83,0.00014982,2]
[352946007,1739454644604,-1822.82,0.00014982,2]
[352946008,1739454644614,-500.0,0.00014982,2]
[352946009,1739454644623,-4398.5,0.00014982,2]
[352946010,1739454644632,-1068.9,0.00014982,2]
[352946011,1739454644642,-2080.4,0.00014982,2]
[352946012,1739454644652,-990.84,0.00014982,2]
[352946013,1739454644661,-500.0,0.00014982,2]
[352946014,1739454644675,-500.0,0.00014982,2]
[352946015,1739454644684,-500.0,0.00014982,2]
[352946016,1739454644693,-3364.3,0.00014982,2]
[352946017,1739454644702,-1588.37,0.00014982,2]
[352946018,1739454644712,-500.0,0.00014982,2]
[352946019,1739454644721,-500.0,0.00014982,2]
[352946020,1739454644731,-500.0,0.00014982,2]
[352946021,1739454644740,-500.0,0.00014982,2]
[352946022,1739454644753,-2090.15,0.00014982,2]
[352946023,1739454644763,-500.0,0.00014982,2]
[352946024,1739454644772,-1551.48,0.00014982,2]
[352946025,1739454644781,-2120.98,0.00014982,2]
[352946026,1739454644791,-500.0,0.00014982,7]
[352946027,1739454644800,-600.53,0.00014982,2]
[352946028,1739454644809,-1233.8,0.00014982,2]
[352946029,1739454644818,-500.772714,0.00014982,2]
[352946030,1739454644828,-1457.62,0.00014982,2]
[352946031,1739454644837,-793.1,0.00014982,2]
[352946032,1739454644847,-1123.03,0.00014982,2]
[352946033,1739454644856,-500.0,0.00014982,2]
[352946034,1739454644865,-751.31,0.00014982,2]
[352946035,1739454644874,-398.76885252,0.00014982,2]
[352946036,1739454644884,-500.0,0.00014982,2]
[352946037,1739454644893,-1101.68,0.00014982,2]
[352946038,1739454644902,-1981.32,0.00014982,2]
[352946039,1739454644911,-2230.98,0.00014982,2]
[352946040,1739454644920,-1152.17,0.00014982,2]
[352946041,1739454644929,-1069.09,0.00014982,2]
[352946042,1739454644939,-1045.84,0.00014982,2]
[352946043,1739454644948,-1238.19,0.00014982,2]
[352946044,1739454644957,-746.05,0.00014982,2]
[352946045,1739454644968,-713.22,0.00014982,2]
[352946046,1739454644980,-2459.12,0.00014982,2]
[352946047,1739454644990,-500.0,0.00014982,2]
[352946048,1739454645001,-500.0,0.00014982,2]
[352946049,1739454645011,-500.0,0.00014982,2]
[352946050,1739454645020,-690.0,0.00014982,2]
[352946051,1739454645029,-2420.43,0.00014982,2]
[352946052,1739454645038,-500.0,0.00014982,2]
[352946053,1739454645048,-1682.43,0.00014982,2]
[352946054,1739454645057,-500.0,0.00014982,2]
[352946055,1739454645067,-595.54,0.00014982,2]
[352946056,1739454645076,-2893.27,0.00014982,2]
[352946057,1739454645085,-1071.58,0.00014982,2]
[352946058,1739454645094,-833.79,0.00014982,2]
[352946059,1739454645104,-593.24,0.00014982,2]
[352946060,1739454645113,-2488.64,0.00014982,2]
[352946061,1739454645122,-1178.64,0.00014982,2]
[352946062,1739454645134,-500.0,0.00014982,2]
[352946063,1739454645143,-500.0,0.00014982,2]
[352946064,1739454645154,-929.26,0.00014982,2]
[352946065,1739454645163,-558.42,0.00014982,2]
[352946066,1739454645173,-2718.7,0.00014982,2]
[352946067,1739454645182,-727.68,0.00014982,2]
[352946068,1739454645191,-644.95,0.00014982,2]
[352946069,1739454645200,-893.26,0.00014982,2]
[352946070,1739454645211,-500.0,0.00014982,2]
[352946071,1739454645220,-3927.35,0.00014982,2]
[352946072,1739454645231,-500.0,0.00014982,2]
[352946073,1739454645240,-1110.12,0.00014982,2]
[352946074,1739454645251,-9059.64,0.00014982,2]
[352946075,1739454645260,-500.0,0.00014982,2]
[352946076,1739454645269,-831.3,0.00014982,2]
[352946077,1739454645278,-500.0,0.00014982,2]
[352946078,1739454645287,-500.0,0.00014983,2]
[352946079,1739454645296,-500.0,0.00014983,2]
[352946080,1739454645306,-500.0,0.00014983,2]
[352946081,1739454645317,-420.66102088,0.00014983,2]
[352946082,1739454645327,-300.0,0.00014983,2]
[352946083,1739454645336,-500.0,0.00014983,2]
[352946084,1739454645347,-500.0,0.00014983,2]
[352946085,1739454645356,-500.0,0.00014983,2]
[352946086,1739454645366,-409.64356582,0.00014983,2]
[352946087,1739454645375,-500.0,0.00014983,2]
[352946088,1739454645385,-1220.97,0.00014983,2]
[352946089,1739454645394,-1056.71,0.00014983,2]
[352946090,1739454645403,-781.54,0.00014983,2]
[352946091,1739454645413,-724.94,0.00014983,2]
[352946092,1739454645423,-1788.29,0.00014983,2]
[352946093,1739454645435,-500.0,0.00014983,2]
[352946094,1739454645446,-500.0,0.00014983,2]
[352946095,1739454645455,-500.0,0.00014983,2]
[352946096,1739454645465,-500.0,0.00014983,2]
[352946097,1739454645474,-604.12,0.00014983,2]
[352946098,1739454645484,-1008.16,0.00014983,2]
[352946099,1739454645493,-1101.63,0.00014983,2]
[352946100,1739454645505,-500.0,0.00014983,2]
[352946101,1739454645515,-1005.04,0.00014983,2]
[352946102,1739454645525,-1045.45,0.00014983,2]
[352946103,1739454645536,-1851.03,0.00014983,2]
[352946104,1739454645546,-1524.77,0.00014983,2]
[352946105,1739454645555,-500.0,0.00014983,2]
[352946106,1739454645564,-500.0,0.00014983,2]
[352946107,1739454645573,-2094.33,0.00014983,2]
[352946108,1739454645582,-2337.86,0.00014983,2]
[352946109,1739454645591,-500.0,0.00014983,2]
[352946110,1739454645602,-532.16,0.00014983,2]
[352946111,1739454645611,-1151.11,0.00014983,2]
[352946112,1739454645620,-973.9,0.00014983,2]
[352946113,1739454645629,-500.0,0.00014983,2]
[352946114,1739454645638,-500.0,0.00014983,2]
[352946115,1739454645647,-1126.51,0.00014983,2]
[352946116,1739454645656,-500.0,0.00014983,2]
[352946117,1739454645667,-961.69,0.00014983,2]
[352946118,1739454645677,-765.12,0.00014983,2]
[352946119,1739454645686,-2040.16,0.00014983,2]
[352946120,1739454645695,-1222.47,0.00014983,2]
[352946121,1739454645704,-500.0,0.00014983,2]
[352946122,1739454645714,-1003.71,0.00014983,2]
[352946123,1739454645723,-1338.67,0.00014983,2]
[352946124,1739454645732,-2017.76,0.00014983,2]
[352946125,1739454645741,-1048.5,0.00014983,2]
[352946126,1739454645752,-1234.4,0.00014983,2]
[352946127,1739454645761,-1827.73,0.00014983,2]
[352946128,1739454645770,-500.0,0.00014983,2]
[352946129,1739454645779,-500.0,0.00014983,2]
[352946130,1739454645789,-1873.64,0.00014983,2]
[352946131,1739454645799,-1831.24,0.00014983,2]
[352946132,1739454645809,-1990.45,0.00014983,2]
[352946133,1739454645819,-1361.29,0.00014983,2]
[352946135,1739454645828,-686.85,0.00014983,2]
[352946136,1739454645838,-1077.54,0.00014983,2]
[352946137,1739454645847,-756.46,0.00014983,2]
[352946139,1739454645856,-2147.69,0.00014983,2]
[352946140,1739454645866,-1019.51,0.00014983,2]
[352946141,1739454645875,-2173.75,0.00014983,2]
[352946142,1739454645884,-267.296628,0.00014983,2]
[352946143,1739454645892,-267.296628,0.00014983,2]
[352946144,1739454645902,-500.0,0.00014984,2]
[352946145,1739454645911,-500.0,0.00014984,2]
[352946147,1739454645920,-715.67,0.00014984,2]
[352946149,1739454645930,-500.0,0.00014984,2]
[352946150,1739454645941,-500.0,0.00014984,2]
[352946151,1739454645951,-500.0,0.00014984,2]
[352946152,1739454645960,-500.0,0.00014984,2]
[352946153,1739454645969,-822.79,0.00014984,2]
[352946154,1739454645978,-678.23,0.00014984,2]
[352946155,1739454645987,-500.0,0.00014984,2]
[352946156,1739454646001,-500.0,0.00014984,2]
[352946157,1739454646011,-500.0,0.00014984,2]
[352946158,1739454646020,-500.0,0.00014984,2]
[352946159,1739454646029,-500.0,0.00014984,2]
[352946160,1739454646039,-500.0,0.00014984,2]
[352946161,1739454646049,-789.82,0.00014984,2]
[352946162,1739454646059,-615.87,0.00014984,2]
[352946164,1739454646068,-615.42,0.00014984,2]
[352946165,1739454646077,-500.0,0.00014984,2]
[352946166,1739454646087,-500.0,0.00014984,2]
[352946167,1739454646096,-500.0,0.00014984,2]
[352946168,1739454646105,-831.34,0.00014984,2]
[352946169,1739454646115,-500.0,0.00014984,2]
[352946170,1739454646124,-500.0,0.00014984,2]
[352946171,1739454646133,-643.22,0.00014984,2]
[352946172,1739454646142,-500.0,0.00014984,2]
[352946173,1739454646152,-500.0,0.00014984,2]
[352946174,1739454646161,-500.0,0.00014984,2]
[352946175,1739454646171,-500.0,0.00014984,2]
[352946176,1739454646180,-500.0,0.00014984,2]
[352946177,1739454646190,-186.04478148,0.00014984,2]
[352946178,1739454646199,-500.0,0.00014984,2]
[352946179,1739454646209,-500.0,0.00014984,2]
[352946180,1739454646219,-500.0,0.00014984,2]
[352946181,1739454646229,-500.0,0.00014984,2]
[352946182,1739454646241,-500.0,0.00014984,2]
[352946183,1739454646253,-500.0,0.00014984,2]
[352946184,1739454646263,-290.33994083,0.00014984,2]
[352946185,1739454646272,-500.0,0.00014984,2]
[352946186,1739454646282,-500.0,0.00014984,2]
[352946187,1739454646292,-719.91,0.00014984,2]
[352946188,1739454646301,-500.0,0.00014984,2]
[352946189,1739454646311,-500.0,0.00014984,2]
[352946190,1739454646321,-288.69911245,0.00014984,2]
[352946191,1739454646331,-500.0,0.00014984,2]
[352946192,1739454646341,-581.68,0.00014984,2]
[352946193,1739454646350,-500.0,0.00014984,2]
[352946194,1739454646360,-550.48,0.00014984,2]
[352946195,1739454646370,-500.0,0.00014984,2]
[352946196,1739454646379,-500.0,0.00014984,2]
[352946197,1739454646389,-500.0,0.00014984,2]
[352946198,1739454646398,-645.34,0.00014984,2]
[352946199,1739454646408,-500.0,0.00014984,2]
[352946200,1739454646417,-2028.36,0.00014984,2]
[352946201,1739454646426,-962.24,0.00014984,2]
[352946202,1739454646435,-502.75950749,0.00014984,2]
[352946203,1739454646445,-706.37,0.00014984,2]
[352946204,1739454646455,-1182.5,0.00014984,2]
[352946205,1739454646465,-500.0,0.00014984,2]
[352946206,1739454646474,-629.22,0.00014984,2]
[352946207,1739454646484,-500.0,0.00014984,2]
[352946208,1739454646494,-565.47,0.00014984,2]
[352946209,1739454646508,-500.0,0.00014984,2]
[352946210,1739454646518,-500.0,0.00014984,2]
[352946211,1739454646527,-500.0,0.00014984,2]
[352946212,1739454646537,-500.0,0.00014984,2]
[352946213,1739454646546,-589.48,0.00014984,2]
[352946214,1739454646556,-500.0,0.00014984,2]
[352946215,1739454646565,-830.6,0.00014984,2]
[352946217,1739454646575,-1020.06,0.00014984,2]
[352946219,1739454646584,-500.0,0.00014984,2]
[352946221,1739454646594,-206.82935667,0.00014984,2]
[352946223,1739454647011,-293.17064333,0.00014984,2]
[352946224,1739454647021,-503.68277338,0.00014984,2]
[352946225,1739454647031,-150.0,0.00014984,2]
[352946226,1739454647040,-500.0,0.00014984,2]
[352946227,1739454647050,-151.0,0.00014984,2]
[352946228,1739454647059,-500.0,0.00014984,2]
[352946229,1739454647068,-1126.56,0.00014984,2]
[352946230,1739454647078,-500.0,0.00014984,2]
[352946231,1739454647087,-500.0,0.00014984,2]
[352946232,1739454647097,-808.83,0.00014984,2]
[352946233,1739454647107,-500.0,0.00014984,2]
[352946234,1739454647116,-1185.65,0.00014984,2]
[352946235,1739454647126,-707.07,0.00014984,2]
[352946236,1739454647135,-500.0,0.00014984,2]
[352946237,1739454647145,-500.0,0.00014984,2]
[352946238,1739454647156,-500.0,0.00014984,2]
[352946239,1739454647167,-925.83,0.00014984,2]
[352946240,1739454647176,-500.0,0.00014984,2]
[352946241,1739454647186,-500.0,0.00014984,2]
[352946242,1739454647197,-500.0,0.00014984,2]
[352946243,1739454647213,-936.04,0.00014984,2]
[352946244,1739454647225,-151.0,0.00014984,2]
[352946245,1739454647235,-151.0,0.00014984,2]
[352946246,1739454647244,-500.0,0.00014984,2]
[352946247,1739454647255,-151.0,0.00014984,2]
[352946248,1739454647265,-151.0,0.00014984,2]
[352946249,1739454647275,-151.0,0.00014984,2]
[352946250,1739454647284,-151.0,0.00014984,2]
[352946251,1739454647294,-150.76613659,0.00014988,2]
[352946252,1739454647303,-500.0,0.00014989,2]
[352946253,1739454647312,-500.0,0.00014989,2]
[352946254,1739454647321,-1000.0,0.00014989,2]
[352946255,1739454647331,-1000.0,0.00014989,2]
[352946256,1739454647341,-1000.0,0.00014989,2]
[352946257,1739454647350,-569.4777537,0.00014989,2]
[352946258,1739454647360,-500.0,0.00014989,2]
[352946259,1739454647370,-500.0,0.00014989,2]
[352946260,1739454647379,-300.00521778,0.00015,3]
[352946261,1739454647389,-150.0,0.00015,2]
[352946262,1739454647398,-500.0,0.00015,2]
[352946263,1739454647408,-150.0,0.00015002,2]
[352946264,1739454647418,-424.16768682,0.00015002,2]
[352946265,1739454647427,-2551.31405594,0.00015003,2]
[352946266,1739454647436,-150.0,0.00015004,2]
[352946267,1739454647646,-150.0,0.00015004,2]
[352946268,1739454647658,-150.0,0.00015004,2]
[352946269,1739454647671,-578.0,0.00015019,2]
[352946270,1739454647681,-173.7769329,0.00015019,2]
[352946271,1739454647691,-150.0,0.0001502,2]
[352946272,1739454647700,-150.0,0.00015025,2]
[352946273,1739454647711,-2551.31405594,0.00015027,2]
[352946274,1739454647720,-150.0,0.00015036,2]
[352946275,1739454647731,-150.0,0.00015037,2]
[352946276,1739454647744,-150.0,0.00015044,2]
[352946277,1739454647754,-150.0,0.00015045,2]
[352946278,1739454647763,-2551.31405594,0.00015051,2]
[352946279,1739454647772,-150.0,0.00015054,2]
[352946280,1739454647782,-150.0,0.00015054,2]
[352946281,1739454647791,-150.0,0.00015054,2]
[352946282,1739454647800,-150.0,0.00015063,2]
[352946283,1739454647810,-1550.82,0.00015068,2]
[352946284,1739454647820,-267.296628,0.0001507,2]
[352946285,1739454647830,-267.296628,0.0001507,2]
[352946286,1739454647840,-81264.88731175,0.00015071,2]
[352946287,1739454647850,-150.0,0.00015071,2]
[352946288,1739454647861,-150.0,0.00015071,2]
[352946289,1739454647871,-150.0,0.00015074,2]
[352946290,1739454647880,-2551.31405594,0.00015076,2]
[352946291,1739454647891,-150.0,0.00015076,2]
[352946292,1739454647900,-150.0,0.00015078,2]
[352946293,1739454647911,-150.0,0.00015081,2]
[352946294,1739454647921,-150.0,0.00015085,2]
[352946295,1739454647931,-150.0,0.0001509,2]
[352946296,1739454647941,-155.428147,0.00015092,5]
[352946297,1739454647950,-150.0,0.00015094,2]
[352946298,1739454647960,-238.16979806,0.00015095,2]
[352946299,1739454647969,-150.76613659,0.00015095,2]
[352946300,1739454647979,-747.0,0.000151,2]
[352946301,1739454647989,-231.0,0.000151,2]
[352946302,1739454648000,-2013.51708936,0.000151,2]
[352946303,1739454648009,-2551.31405594,0.000151,2]
[352946304,1739454648019,-367.0,0.000151,2]
[352946305,1739454648029,-150.0,0.00015101,2]
[352946306,1739454648039,-150.0,0.00015101,2]
[352946307,1739454648048,-150.0,0.00015108,2]
[352946308,1739454648058,-150.0,0.00015108,2]
[352946309,1739454648068,-5919.1235468,0.00015108,2]
[352946310,1739454648079,-2552.1304394,0.00015108,2]
[352946311,1739454648089,-150.0,0.00015108,2]
[352946312,1739454648099,-240.202702,0.00015116,2]
[352946313,1739454648109,-1113.44,0.00015116,2]
[352946314,1739454648119,-3664.6,0.00015116,2]
[352946315,1739454648128,-2753.3,0.00015116,2]
[352946316,1739454648138,-2889.2,0.00015116,2]
[352946317,1739454648149,-2298.11,0.00015116,2]
[352946318,1739454648159,-3816.69,0.00015116,2]
[352946319,1739454648169,-500.0,0.00015116,2]
[352946320,1739454648179,-2076.76,0.00015116,2]
[352946321,1739454648190,-500.0,0.00015116,2]
[352946322,1739454648202,-500.0,0.00015116,2]
[352946323,1739454648212,-1097.74,0.00015116,2]
[352946324,1739454648222,-2679.32,0.00015116,2]
[352946325,1739454648232,-500.0,0.00015116,2]
[352946326,1739454648242,-500.0,0.00015116,2]
[352946327,1739454648253,-500.0,0.00015117,2]
[352946328,1739454648263,-655.66,0.00015117,2]
[352946329,1739454648273,-500.0,0.00015117,2]
[352946330,1739454648283,-973.35,0.00015117,2]
[352946331,1739454648292,-500.0,0.00015117,2]
[352946332,1739454648302,-600.17,0.00015117,2]
[352946333,1739454648312,-686.04,0.00015117,2]
[352946334,1739454648321,-500.0,0.00015117,2]
[352946335,1739454648331,-500.0,0.00015117,2]
[352946336,1739454648340,-823.46,0.00015117,2]
[352946337,1739454648350,-594.18,0.00015117,2]
[352946338,1739454648359,-538.68,0.00015117,2]
[352946339,1739454648369,-500.0,0.00015117,2]
[352946340,1739454648379,-500.0,0.00015117,2]
[352946341,1739454648389,-857.27,0.00015117,2]
[352946342,1739454648401,-500.0,0.00015117,2]
[352946343,1739454648411,-500.0,0.00015117,2]
[352946344,1739454648420,-3795.36,0.00015117,2]
[352946345,1739454648429,-500.0,0.00015117,2]
[352946346,1739454648438,-1521.56,0.00015117,2]
[352946347,1739454648448,-802.352975,0.00015117,2]
[352946348,1739454648458,-500.0,0.00015117,2]
[352946349,1739454648468,-3358.2,0.00015117,2]
[352946350,1739454648478,-812.7,0.00015117,2]
[352946351,1739454648488,-500.0,0.00015117,2]
[352946352,1739454648497,-500.0,0.00015117,2]
[352946353,1739454648507,-2285.75,0.00015117,2]
[352946354,1739454648516,-2013.29,0.00015117,2]
[352946355,1739454648526,-500.0,0.00015117,2]
[352946356,1739454648535,-500.0,0.00015117,2]
[352946357,1739454648545,-1614.23,0.00015117,2]
[352946358,1739454648554,-537.04,0.00015117,2]
[352946359,1739454648564,-643.5,0.00015117,2]
[352946360,1739454648574,-1172.79,0.00015117,2]
[352946361,1739454648583,-414.751002,0.00015117,2]
[352946362,1739454648593,-500.0,0.00015117,2]
[352946363,1739454648603,-500.0,0.00015117,2]
[352946364,1739454648613,-1651.15,0.00015117,2]